[Event "*** Titled Tuesday Blitz"]
[Site "Chess.com"]
[Date "2019.06.04"]
[Round "3"]
[White "champ2005"]
[Black "2nd_life"]
[Result "1-0"]
[WhiteElo "2827"]
[BlackElo "2549"]
[TimeControl "180+2"]
[EndTime "13:34:43 PDT"]
[Termination "champ2005 won by resignation"]

1. d4 {[%clk 0:03:01.5]} 1... Nf6 {[%clk 0:03:00.4]} 2. c4 {[%clk 0:02:59.6]}
2... e6 {[%clk 0:03:01.4]} 3. g3 {[%clk 0:03:00.1]} 3... c5 {[%clk 0:02:59.2]}
4. d5 {[%clk 0:02:57]} 4... exd5 {[%clk 0:03:00.4]} 5. cxd5 {[%clk 0:02:58.1]}
5... d6 {[%clk 0:03:01.9]} 6. Nc3 {[%clk 0:02:57.8]} 6... g6 {[%clk 0:03:03.4]}
7. Bg2 {[%clk 0:02:59]} 7... Bg7 {[%clk 0:03:04.8]} 8. Nf3 {[%clk 0:03:00]} 8...
O-O {[%clk 0:03:06]} 9. O-O {[%clk 0:03:00.7]} 9... Re8 {[%clk 0:03:07.3]} 10.
Bf4 {[%clk 0:02:59.3]} 10... Ne4 {[%clk 0:03:07.5]} 11. Nxe4 {[%clk 0:03:00.1]}
11... Rxe4 {[%clk 0:03:08.4]} 12. Nd2 {[%clk 0:03:01.4]} 12... Rxf4 {[%clk
0:03:09.6]} 13. gxf4 {[%clk 0:03:02.5]} 13... Bxb2 {[%clk 0:03:10.7]} 14. Rb1
{[%clk 0:03:02.4]} 14... Bg7 {[%clk 0:03:11.3]} 15. Qb3 {[%clk 0:03:03.4]} 15...
b6 {[%clk 0:02:04.5]} 16. Rfe1 {[%clk 0:03:01.9]} 16... f5 {[%clk 0:01:27.5]}
17. Nc4 {[%clk 0:02:52.7]} 17... Ba6 {[%clk 0:01:14.9]} 18. a4 {[%clk
0:02:53.2]} 18... Qf8 {[%clk 0:00:49.2]} 19. e4 {[%clk 0:02:45.1]} 19... fxe4
{[%clk 0:00:48.4]} 20. Rxe4 {[%clk 0:02:45.9]} 20... Nd7 {[%clk 0:00:43.7]} 21.
Rbe1 {[%clk 0:02:41.5]} 21... Bxc4 {[%clk 0:00:29.4]} 22. Qxc4 {[%clk
0:02:38.9]} 22... Qf5 {[%clk 0:00:28.9]} 23. Qd3 {[%clk 0:02:33.8]} 23... Nf6
{[%clk 0:00:23.3]} 24. Bh3 {[%clk 0:02:16]} 24... Qh5 {[%clk 0:00:20]} 25. Re6
{[%clk 0:02:01.7]} 25... Qxd5 {[%clk 0:00:14.5]} 26. Qxd5 {[%clk 0:02:02]} 26...
Nxd5 {[%clk 0:00:15.4]} 27. Bg2 {[%clk 0:02:03.4]} 27... Nxf4 {[%clk 0:00:05.4]}
28. Bxa8 {[%clk 0:02:04.6]} 28... Nxe6 {[%clk 0:00:05.9]} 29. Rxe6 {[%clk
0:02:06.5]} 29... Be5 {[%clk 0:00:06.3]} 30. Re7 {[%clk 0:02:00.6]} 30... a6
{[%clk 0:00:07.1]} 31. Bd5+ {[%clk 0:02:00.3]} 31... Kh8 {[%clk 0:00:07.3]} 32.
Rb7 {[%clk 0:01:59.8]} 1-0

[Event "*** Titled Tuesday Blitz"]
[Site "Chess.com"]
[Date "2019.06.04"]
[Round "3"]
[White "Zhuu96"]
[Black "26andrej26"]
[Result "1-0"]
[WhiteElo "2943"]
[BlackElo "2519"]
[TimeControl "180+2"]
[EndTime "13:34:47 PDT"]
[Termination "Zhuu96 won by resignation"]

1. d4 {[%clk 0:02:59.2]} 1... Nf6 {[%clk 0:03:01.3]} 2. c4 {[%clk 0:02:59.2]}
2... g6 {[%clk 0:03:02.6]} 3. Nc3 {[%clk 0:02:58.1]} 3... Bg7 {[%clk 0:03:04.5]}
4. e4 {[%clk 0:02:59.1]} 4... d6 {[%clk 0:03:06.4]} 5. Nf3 {[%clk 0:03:00.3]}
5... O-O {[%clk 0:03:08.3]} 6. Be2 {[%clk 0:03:00.9]} 6... e5 {[%clk 0:03:09.7]}
7. O-O {[%clk 0:02:56.9]} 7... Nc6 {[%clk 0:03:10.6]} 8. d5 {[%clk 0:02:54.3]}
8... Ne7 {[%clk 0:03:11.9]} 9. b4 {[%clk 0:02:51.9]} 9... a5 {[%clk 0:03:13.2]}
10. Ba3 {[%clk 0:02:47.1]} 10... axb4 {[%clk 0:03:15.1]} 11. Bxb4 {[%clk
0:02:48.2]} 11... b6 {[%clk 0:03:17]} 12. a4 {[%clk 0:02:48.4]} 12... Re8 {[%clk
0:03:18.4]} 13. a5 {[%clk 0:02:49.6]} 13... c5 {[%clk 0:03:18.4]} 14. dxc6
{[%clk 0:02:50.2]} 14... Nxc6 {[%clk 0:03:19.7]} 15. Bxd6 {[%clk 0:02:50]} 15...
Nxa5 {[%clk 0:03:13.9]} 16. Bxe5 {[%clk 0:02:27.1]} 16... Qxd1 {[%clk
0:03:09.1]} 17. Rfxd1 {[%clk 0:02:24.4]} 17... Nxe4 {[%clk 0:02:59.2]} 18. Bxg7
{[%clk 0:02:21.4]} 18... Kxg7 {[%clk 0:03:00.5]} 19. Nd5 {[%clk 0:02:20.8]}
19... Rb8 {[%clk 0:02:29.6]} 20. Rdb1 {[%clk 0:02:17.9]} 20... Nd6 {[%clk
0:01:44.6]} 21. Ne3 {[%clk 0:01:47.9]} 21... Bf5 {[%clk 0:01:10.6]} 22. Rb2
{[%clk 0:01:43.8]} 22... Rec8 {[%clk 0:00:52]} 23. Ra4 {[%clk 0:01:26.3]} 23...
Be6 {[%clk 0:00:45.8]} 24. Nd2 {[%clk 0:01:26.6]} 24... f5 {[%clk 0:00:29.5]}
25. g3 {[%clk 0:01:27.2]} 25... Rc6 {[%clk 0:00:17.2]} 26. Rxa5 {[%clk
0:01:27.8]} 1-0

[Event "*** Titled Tuesday Blitz"]
[Site "Chess.com"]
[Date "2019.06.04"]
[Round "3"]
[White "GremioPrudente"]
[Black "Satscho"]
[Result "1/2-1/2"]
[WhiteElo "2119"]
[BlackElo "2246"]
[TimeControl "180+2"]
[EndTime "13:34:49 PDT"]
[Termination "Game drawn by agreement"]

1. Nf3 {[%clk 0:03:01.9]} 1... Nf6 {[%clk 0:03:00.4]} 2. c4 {[%clk 0:03:01.9]}
2... g6 {[%clk 0:03:01.5]} 3. Nc3 {[%clk 0:03:01.8]} 3... Bg7 {[%clk 0:03:03.4]}
4. d4 {[%clk 0:03:03]} 4... O-O {[%clk 0:03:04.1]} 5. g3 {[%clk 0:03:04.4]} 5...
d6 {[%clk 0:03:05.6]} 6. Bg2 {[%clk 0:03:05]} 6... Nc6 {[%clk 0:02:59.2]} 7. O-O
{[%clk 0:02:53.1]} 7... a6 {[%clk 0:02:59.6]} 8. b3 {[%clk 0:02:25]} 8... Rb8
{[%clk 0:02:59.3]} 9. Bb2 {[%clk 0:02:25.9]} 9... b5 {[%clk 0:02:59.6]} 10. cxb5
{[%clk 0:02:19.2]} 10... axb5 {[%clk 0:03:01.5]} 11. d5 {[%clk 0:02:10.3]} 11...
Na5 {[%clk 0:02:42.2]} 12. a3 {[%clk 0:02:10.8]} 12... c5 {[%clk 0:02:38.1]} 13.
dxc6 {[%clk 0:01:59.8]} 13... Nxc6 {[%clk 0:02:38.8]} 14. Rc1 {[%clk 0:02:01.5]}
14... b4 {[%clk 0:02:33.9]} 15. Nd5 {[%clk 0:01:55]} 15... Nxd5 {[%clk
0:02:27.4]} 16. Bxg7 {[%clk 0:01:55.4]} 16... Kxg7 {[%clk 0:02:29.3]} 17. Qxd5
{[%clk 0:01:42.7]} 17... Na5 {[%clk 0:02:12.4]} 18. axb4 {[%clk 0:01:43.7]}
18... Rxb4 {[%clk 0:02:09.6]} 19. Rxc8 {[%clk 0:01:41.4]} 19... Qxc8 {[%clk
0:02:10.9]} 20. Qxa5 {[%clk 0:01:42.5]} 20... Rxb3 {[%clk 0:02:08.4]} 21. Nd4
{[%clk 0:01:36.1]} 21... Rc3 {[%clk 0:02:07.8]} 22. Qa1 {[%clk 0:01:26.9]} 22...
Kg8 {[%clk 0:02:07.2]} 23. Rb1 {[%clk 0:01:19.5]} 23... Qc5 {[%clk 0:02:03.8]}
24. e3 {[%clk 0:01:11.9]} 24... Rc8 {[%clk 0:02:03.8]} 25. Bf3 {[%clk
0:01:01.1]} 25... e5 {[%clk 0:02:01.7]} 26. Nb3 {[%clk 0:00:47.2]} 26... Qc4
{[%clk 0:01:59]} 27. Nd2 {[%clk 0:00:46.3]} 27... Qc7 {[%clk 0:01:48.8]} 28. Ne4
{[%clk 0:00:44.5]} 28... Rc1+ {[%clk 0:01:47.2]} 29. Rxc1 {[%clk 0:00:42.5]}
29... Qxc1+ {[%clk 0:01:49.1]} 30. Qxc1 {[%clk 0:00:43.9]} 30... Rxc1+ {[%clk
0:01:51]} 31. Kg2 {[%clk 0:00:45.3]} 31... d5 {[%clk 0:01:52.9]} 32. Nf6+ {[%clk
0:00:45.3]} 32... Kg7 {[%clk 0:01:52.2]} 33. Nxd5 {[%clk 0:00:47.2]} 33... Ra1
{[%clk 0:01:53.4]} 34. e4 {[%clk 0:00:45.5]} 34... Ra3 {[%clk 0:01:53.6]} 35. h4
{[%clk 0:00:45.9]} 35... Ra2 {[%clk 0:01:53.8]} 36. Ne3 {[%clk 0:00:46.3]} 36...
Ra3 {[%clk 0:01:54.9]} 37. Ng4 {[%clk 0:00:44.6]} 37... f6 {[%clk 0:01:54.6]}
38. Ne3 {[%clk 0:00:45.7]} 38... Ra2 {[%clk 0:01:55.6]} 39. Nd5 {[%clk
0:00:45.8]} 39... Ra3 {[%clk 0:01:56.7]} 40. Ne3 {[%clk 0:00:43.9]} 40... Ra2
{[%clk 0:01:57.2]} 1/2-1/2

[Event "*** Titled Tuesday Blitz"]
[Site "Chess.com"]
[Date "2019.06.04"]
[Round "3"]
[White "attack2mateU"]
[Black "severomorskij"]
[Result "0-1"]
[WhiteElo "2708"]
[BlackElo "2782"]
[TimeControl "180+2"]
[EndTime "13:34:52 PDT"]
[Termination "severomorskij won by resignation"]

1. e4 {[%clk 0:03:01.9]} 1... c5 {[%clk 0:02:59.7]} 2. Nf3 {[%clk 0:03:02.3]}
2... Nc6 {[%clk 0:03:00.8]} 3. d4 {[%clk 0:03:02.7]} 3... cxd4 {[%clk
0:03:01.5]} 4. Nxd4 {[%clk 0:03:04.6]} 4... Nf6 {[%clk 0:03:02.9]} 5. Nc3 {[%clk
0:03:05.2]} 5... e5 {[%clk 0:03:04.3]} 6. Ndb5 {[%clk 0:03:06.3]} 6... d6 {[%clk
0:03:05.8]} 7. Bg5 {[%clk 0:03:03.9]} 7... a6 {[%clk 0:03:06.8]} 8. Na3 {[%clk
0:03:05.1]} 8... b5 {[%clk 0:03:08.3]} 9. Nd5 {[%clk 0:03:03.7]} 9... Be7 {[%clk
0:03:09.1]} 10. Bxf6 {[%clk 0:03:04]} 10... Bxf6 {[%clk 0:03:09.7]} 11. c3
{[%clk 0:02:55.1]} 11... O-O {[%clk 0:03:08.8]} 12. Nc2 {[%clk 0:02:55.9]} 12...
Bg5 {[%clk 0:03:08]} 13. a4 {[%clk 0:02:52.1]} 13... bxa4 {[%clk 0:03:07]} 14.
Rxa4 {[%clk 0:02:53]} 14... a5 {[%clk 0:03:08.2]} 15. Bc4 {[%clk 0:02:53.3]}
15... Kh8 {[%clk 0:03:08.2]} 16. b3 {[%clk 0:02:47.3]} 16... f5 {[%clk
0:02:50.6]} 17. exf5 {[%clk 0:02:45.1]} 17... Bxf5 {[%clk 0:02:43]} 18. O-O
{[%clk 0:02:42.2]} 18... e4 {[%clk 0:02:22.2]} 19. Nd4 {[%clk 0:02:39.3]} 19...
Nxd4 {[%clk 0:02:13.5]} 20. Qxd4 {[%clk 0:02:41.2]} 20... Bg6 {[%clk 0:02:08.5]}
21. Rfa1 {[%clk 0:02:17.8]} 21... h6 {[%clk 0:01:28.8]} 22. b4 {[%clk
0:02:09.7]} 22... e3 {[%clk 0:01:22.4]} 23. fxe3 {[%clk 0:02:05]} 23... Re8
{[%clk 0:01:22.6]} 24. Bd3 {[%clk 0:01:42.9]} 24... Bf7 {[%clk 0:01:16]} 25. Nf4
{[%clk 0:01:22.9]} 25... Bf6 {[%clk 0:01:07.2]} 26. Qe4 {[%clk 0:01:19.1]} 26...
Rxe4 {[%clk 0:00:43]} 27. Bxe4 {[%clk 0:01:21]} 27... d5 {[%clk 0:00:37.2]} 28.
Bd3 {[%clk 0:01:18.1]} 28... Bxc3 {[%clk 0:00:34.2]} 29. Rxa5 {[%clk 0:01:18.7]}
29... Bxa1 {[%clk 0:00:33.5]} 0-1

[Event "*** Titled Tuesday Blitz"]
[Site "Chess.com"]
[Date "2019.06.04"]
[Round "3"]
[White "PenguinPacks"]
[Black "Orest_Vovk"]
[Result "0-1"]
[WhiteElo "2172"]
[BlackElo "2328"]
[TimeControl "180+2"]
[EndTime "13:34:55 PDT"]
[Termination "Orest_Vovk won by resignation"]

1. Nf3 {[%clk 0:03:01.9]} 1... Nf6 {[%clk 0:02:53.1]} 2. g3 {[%clk 0:02:58.5]}
2... g6 {[%clk 0:02:53.5]} 3. Bg2 {[%clk 0:02:59.4]} 3... Bg7 {[%clk 0:02:55.4]}
4. O-O {[%clk 0:03:00.1]} 4... O-O {[%clk 0:02:57.3]} 5. Re1 {[%clk 0:02:59.6]}
5... c5 {[%clk 0:02:58.5]} 6. e4 {[%clk 0:03:00.7]} 6... d6 {[%clk 0:02:59.1]}
7. c3 {[%clk 0:03:01.2]} 7... Nc6 {[%clk 0:02:58.2]} 8. d4 {[%clk 0:03:02.5]}
8... cxd4 {[%clk 0:02:58]} 9. cxd4 {[%clk 0:03:03.6]} 9... Bg4 {[%clk
0:02:58.7]} 10. h3 {[%clk 0:02:56.5]} 10... Bxf3 {[%clk 0:02:35.8]} 11. Bxf3
{[%clk 0:02:58]} 11... Qb6 {[%clk 0:02:37]} 12. d5 {[%clk 0:02:49.2]} 12... Ne5
{[%clk 0:02:33.8]} 13. Bg2 {[%clk 0:02:49]} 13... Rac8 {[%clk 0:02:29.9]} 14.
Nc3 {[%clk 0:02:50]} 14... Nc4 {[%clk 0:02:29.3]} 15. Qb3 {[%clk 0:02:50.2]}
15... Nd7 {[%clk 0:02:24.7]} 16. Na4 {[%clk 0:02:48.7]} 16... Qxb3 {[%clk
0:02:19.9]} 17. axb3 {[%clk 0:02:50.6]} 17... Na5 {[%clk 0:02:21.1]} 18. Ra3
{[%clk 0:02:42.1]} 18... Rc2 {[%clk 0:02:16]} 19. Bf1 {[%clk 0:02:26.9]} 19...
Rfc8 {[%clk 0:01:51.1]} 20. Nc3 {[%clk 0:02:26.9]} 20... b6 {[%clk 0:01:41.2]}
21. Bd3 {[%clk 0:02:21.8]} 21... R8xc3 {[%clk 0:01:32.5]} 22. bxc3 {[%clk
0:02:22.6]} 22... Rxc3 {[%clk 0:01:33.8]} 23. Bb5 {[%clk 0:02:19.6]} 23... Nc5
{[%clk 0:01:32.7]} 24. Bb2 {[%clk 0:02:08.1]} 24... Rxb3 {[%clk 0:01:32.4]} 25.
Rxb3 {[%clk 0:02:09]} 25... Naxb3 {[%clk 0:01:34.3]} 26. Bxg7 {[%clk 0:02:09.2]}
26... Kxg7 {[%clk 0:01:33.8]} 27. e5 {[%clk 0:02:10.5]} 27... a5 {[%clk
0:01:30.6]} 28. exd6 {[%clk 0:02:07]} 28... exd6 {[%clk 0:01:14.9]} 29. Re8
{[%clk 0:02:03.3]} 29... Nd4 {[%clk 0:01:10.1]} 30. Bf1 {[%clk 0:02:00.4]} 30...
a4 {[%clk 0:01:04.4]} 31. Ra8 {[%clk 0:01:46.1]} 31... b5 {[%clk 0:00:59]} 32.
Bxb5 {[%clk 0:01:40.8]} 32... Nxb5 {[%clk 0:00:59.2]} 33. Ra5 {[%clk 0:01:41]}
33... Nc3 {[%clk 0:00:59.1]} 34. Ra8 {[%clk 0:01:26.6]} 34... Nxd5 {[%clk
0:00:56.6]} 35. Rd8 {[%clk 0:01:27.7]} 35... Nb4 {[%clk 0:00:54.7]} 36. Rb8
{[%clk 0:01:25.1]} 36... a3 {[%clk 0:00:50.4]} 0-1

[Event "*** Titled Tuesday Blitz"]
[Site "Chess.com"]
[Date "2019.06.04"]
[Round "3"]
[White "riconaipe"]
[Black "Bryakin_Mikhail"]
[Result "0-1"]
[WhiteElo "2570"]
[BlackElo "2721"]
[TimeControl "180+2"]
[EndTime "13:34:57 PDT"]
[Termination "Bryakin_Mikhail won by checkmate"]

1. d4 {[%clk 0:03:01.9]} 1... d5 {[%clk 0:02:37.5]} 2. c4 {[%clk 0:03:02]} 2...
c6 {[%clk 0:02:33.5]} 3. Nf3 {[%clk 0:03:01.6]} 3... Nf6 {[%clk 0:02:34.3]} 4.
e3 {[%clk 0:03:02.8]} 4... Bf5 {[%clk 0:02:34.6]} 5. Nc3 {[%clk 0:03:03.3]} 5...
e6 {[%clk 0:02:36.1]} 6. Be2 {[%clk 0:03:02.4]} 6... Nbd7 {[%clk 0:02:35.5]} 7.
O-O {[%clk 0:03:03.4]} 7... h6 {[%clk 0:02:37]} 8. Ne5 {[%clk 0:02:56.8]} 8...
Bd6 {[%clk 0:02:34.9]} 9. f4 {[%clk 0:02:57.2]} 9... O-O {[%clk 0:02:36.1]} 10.
b3 {[%clk 0:02:55.8]} 10... a5 {[%clk 0:02:30.3]} 11. a4 {[%clk 0:02:56.1]}
11... Bb4 {[%clk 0:02:27.2]} 12. Bd2 {[%clk 0:02:51.9]} 12... Qe7 {[%clk
0:02:24.4]} 13. cxd5 {[%clk 0:02:35.6]} 13... exd5 {[%clk 0:02:17]} 14. g4
{[%clk 0:02:36.2]} 14... Bh7 {[%clk 0:02:07.1]} 15. Bf3 {[%clk 0:02:33.9]} 15...
Bxc3 {[%clk 0:01:58.2]} 16. Bxc3 {[%clk 0:02:34.9]} 16... Ne4 {[%clk 0:01:59.9]}
17. Qe1 {[%clk 0:02:28.2]} 17... Nxc3 {[%clk 0:01:47.6]} 18. Qxc3 {[%clk
0:02:27.8]} 18... f6 {[%clk 0:01:49.2]} 19. Nxd7 {[%clk 0:02:25.6]} 19... Qxd7
{[%clk 0:01:51.1]} 20. f5 {[%clk 0:02:26.6]} 20... Rfe8 {[%clk 0:01:47.6]} 21.
Rae1 {[%clk 0:02:22.9]} 21... Kh8 {[%clk 0:01:47.7]} 22. e4 {[%clk 0:02:15.4]}
22... dxe4 {[%clk 0:01:47.9]} 23. Rxe4 {[%clk 0:02:15.6]} 23... Rxe4 {[%clk
0:01:47.1]} 24. Bxe4 {[%clk 0:02:17.2]} 24... Bg8 {[%clk 0:01:47.2]} 25. Re1
{[%clk 0:02:17.3]} 25... Bd5 {[%clk 0:01:47.5]} 26. Bxd5 {[%clk 0:02:18]} 26...
Qxd5 {[%clk 0:01:49.4]} 27. Re7 {[%clk 0:02:17.6]} 27... Rd8 {[%clk 0:01:44.6]}
28. Rxb7 {[%clk 0:02:15.2]} 28... Qe4 {[%clk 0:01:46]} 29. h3 {[%clk 0:01:35.5]}
29... Rxd4 {[%clk 0:01:43.4]} 30. Kf2 {[%clk 0:00:37.8]} 30... Qf4+ {[%clk
0:01:37.8]} 31. Ke2 {[%clk 0:00:38.8]} 31... Re4+ {[%clk 0:01:38.8]} 32. Kd1
{[%clk 0:00:38.5]} 32... Qf1+ {[%clk 0:01:39.8]} 33. Kc2 {[%clk 0:00:36.4]}
33... Re2+ {[%clk 0:01:37.4]} 34. Kd3 {[%clk 0:00:36.9]} 34... Qf3+ {[%clk
0:01:38.7]} 35. Kd4 {[%clk 0:00:37.4]} 35... Qd5# {[%clk 0:01:39.4]} 0-1

[Event "*** Titled Tuesday Blitz"]
[Site "Chess.com"]
[Date "2019.06.04"]
[Round "3"]
[White "benhal"]
[Black "PowerThinking2650"]
[Result "1-0"]
[WhiteElo "2400"]
[BlackElo "2363"]
[TimeControl "180+2"]
[EndTime "13:34:59 PDT"]
[Termination "benhal won by resignation"]

1. c4 {[%clk 0:03:01.9]} 1... Nf6 {[%clk 0:03:00.2]} 2. g3 {[%clk 0:03:03]} 2...
g6 {[%clk 0:03:01.2]} 3. Bg2 {[%clk 0:03:04.3]} 3... Bg7 {[%clk 0:03:02.7]} 4.
Nc3 {[%clk 0:03:05.5]} 4... O-O {[%clk 0:03:03.7]} 5. Nf3 {[%clk 0:02:59.2]}
5... d6 {[%clk 0:03:04.8]} 6. O-O {[%clk 0:02:59.8]} 6... e5 {[%clk 0:03:06.3]}
7. Rb1 {[%clk 0:02:58.4]} 7... a5 {[%clk 0:03:06.5]} 8. a3 {[%clk 0:02:58.8]}
8... Nc6 {[%clk 0:03:07]} 9. b4 {[%clk 0:02:59.1]} 9... axb4 {[%clk 0:03:08]}
10. axb4 {[%clk 0:03:01]} 10... Bf5 {[%clk 0:03:08.6]} 11. d3 {[%clk 0:03:00.6]}
11... Qd7 {[%clk 0:03:09.9]} 12. b5 {[%clk 0:02:58.4]} 12... Nd8 {[%clk
0:03:10.6]} 13. Bg5 {[%clk 0:02:57.2]} 13... h6 {[%clk 0:03:01.9]} 14. Bxf6
{[%clk 0:02:57.8]} 14... Bxf6 {[%clk 0:03:03]} 15. Qd2 {[%clk 0:02:49.3]} 15...
Bg7 {[%clk 0:03:03.2]} 16. Nd5 {[%clk 0:02:47.9]} 16... Be6 {[%clk 0:02:57.8]}
17. Rfc1 {[%clk 0:02:44.9]} 17... f5 {[%clk 0:02:54.3]} 18. e3 {[%clk
0:02:37.7]} 18... g5 {[%clk 0:02:44]} 19. d4 {[%clk 0:02:37.2]} 19... e4 {[%clk
0:02:41.8]} 20. Ne1 {[%clk 0:02:35.5]} 20... Rc8 {[%clk 0:02:21.8]} 21. Nc2
{[%clk 0:02:32.6]} 21... Qf7 {[%clk 0:01:53.1]} 22. Ncb4 {[%clk 0:02:30]} 22...
h5 {[%clk 0:01:43.8]} 23. b6 {[%clk 0:02:25]} 23... c6 {[%clk 0:01:42.5]} 24.
Nc7 {[%clk 0:02:25.2]} 24... Bxc4 {[%clk 0:01:39.1]} 25. Rxc4 {[%clk 0:02:09.9]}
25... Qxc4 {[%clk 0:01:39.2]} 26. Bf1 {[%clk 0:02:10]} 26... Qf7 {[%clk
0:01:36.9]} 27. Qc2 {[%clk 0:02:10.5]} 27... Ne6 {[%clk 0:01:25.1]} 28. Bc4
{[%clk 0:02:00]} 28... d5 {[%clk 0:01:11.1]} 29. Nbxd5 {[%clk 0:02:00.1]} 29...
cxd5 {[%clk 0:00:57.1]} 30. Bxd5 {[%clk 0:02:00.8]} 30... Kh8 {[%clk 0:00:46.5]}
31. Qa2 {[%clk 0:02:00]} 31... Rxc7 {[%clk 0:00:16]} 32. bxc7 {[%clk 0:02:01.9]}
32... Qxc7 {[%clk 0:00:15.5]} 33. Bxe6 {[%clk 0:02:03.8]} 33... f4 {[%clk
0:00:16.3]} 34. Qd5 {[%clk 0:02:03.3]} 34... fxg3 {[%clk 0:00:15.1]} 35. hxg3
{[%clk 0:02:03.3]} 35... Rxf2 {[%clk 0:00:15]} 36. Qxg5 {[%clk 0:02:00.5]} 36...
Qc2 {[%clk 0:00:13.6]} 37. Qxh5+ {[%clk 0:02:01.4]} 1-0

[Event "*** Titled Tuesday Blitz"]
[Site "Chess.com"]
[Date "2019.06.04"]
[Round "3"]
[White "Slovak_fighter2000"]
[Black "GMKrikor"]
[Result "1/2-1/2"]
[WhiteElo "2492"]
[BlackElo "2713"]
[TimeControl "180+2"]
[EndTime "13:35:04 PDT"]
[Termination "Game drawn by agreement"]

1. d4 {[%clk 0:03:01.9]} 1... Nf6 {[%clk 0:03:00.5]} 2. Nf3 {[%clk 0:03:02.2]}
2... g6 {[%clk 0:02:59.7]} 3. c4 {[%clk 0:03:02]} 3... Bg7 {[%clk 0:03:00]} 4.
Nc3 {[%clk 0:03:03.1]} 4... d5 {[%clk 0:03:00.6]} 5. Bg5 {[%clk 0:03:02.4]} 5...
dxc4 {[%clk 0:03:00.4]} 6. e3 {[%clk 0:03:01]} 6... c5 {[%clk 0:02:34.2]} 7.
dxc5 {[%clk 0:02:59.4]} 7... Qa5 {[%clk 0:02:28.3]} 8. Bxc4 {[%clk 0:02:59.4]}
8... Ne4 {[%clk 0:01:53.2]} 9. O-O {[%clk 0:02:58.8]} 9... Nxg5 {[%clk
0:01:41.4]} 10. Nxg5 {[%clk 0:02:58.3]} 10... O-O {[%clk 0:01:42.6]} 11. Nge4
{[%clk 0:02:42.2]} 11... Na6 {[%clk 0:01:18.8]} 12. a3 {[%clk 0:02:38.9]} 12...
Bxc3 {[%clk 0:01:06.8]} 13. Nxc3 {[%clk 0:02:34.8]} 13... Qxc5 {[%clk 0:01:06]}
14. Bxa6 {[%clk 0:02:32.6]} 14... bxa6 {[%clk 0:01:06.9]} 15. Qd5 {[%clk
0:02:33.4]} 15... Qxd5 {[%clk 0:00:56.6]} 16. Nxd5 {[%clk 0:02:35.3]} 16... Bb7
{[%clk 0:00:49.3]} 17. Rfd1 {[%clk 0:02:32.7]} 17... Bxd5 {[%clk 0:00:46.6]} 18.
Rxd5 {[%clk 0:02:32.8]} 18... Rfd8 {[%clk 0:00:48.3]} 19. Rad1 {[%clk
0:02:30.8]} 19... Rxd5 {[%clk 0:00:49]} 20. Rxd5 {[%clk 0:02:32.7]} 20... Rc8
{[%clk 0:00:50.6]} 21. g3 {[%clk 0:02:32.4]} 21... e6 {[%clk 0:00:43.2]} 22. Rd7
{[%clk 0:02:31.1]} 22... Rc2 {[%clk 0:00:38]} 23. Rxa7 {[%clk 0:02:21.3]} 23...
Rxb2 {[%clk 0:00:38.3]} 24. Rxa6 {[%clk 0:02:22.2]} 24... h5 {[%clk 0:00:39.5]}
25. h4 {[%clk 0:02:22.5]} 25... Kg7 {[%clk 0:00:40.4]} 26. Kg2 {[%clk
0:02:23.1]} 26... Ra2 {[%clk 0:00:41.9]} 27. Kf3 {[%clk 0:02:23.6]} 27... Kf6
{[%clk 0:00:41.5]} 28. Ra5 {[%clk 0:02:22.9]} 28... e5 {[%clk 0:00:38.6]} 29. e4
{[%clk 0:02:16.6]} 29... Ke6 {[%clk 0:00:38.5]} 30. Ra6+ {[%clk 0:02:15.8]}
30... Ke7 {[%clk 0:00:39.4]} 31. Ke3 {[%clk 0:02:16.8]} 31... f6 {[%clk
0:00:32.2]} 32. f4 {[%clk 0:02:16.7]} 32... exf4+ {[%clk 0:00:25.4]} 33. Kxf4
{[%clk 0:02:08.7]} 33... Rf2+ {[%clk 0:00:24.3]} 34. Ke3 {[%clk 0:02:09.5]}
34... Rg2 {[%clk 0:00:26.2]} 35. Kf3 {[%clk 0:02:08.7]} 35... Ra2 {[%clk
0:00:27.7]} 36. g4 {[%clk 0:01:59.6]} 36... hxg4+ {[%clk 0:00:27.4]} 37. Kxg4
{[%clk 0:02:00.7]} 37... Re2 {[%clk 0:00:28.8]} 38. Kf4 {[%clk 0:01:57.7]} 38...
Rh2 {[%clk 0:00:28.2]} 39. Kg3 {[%clk 0:01:56.2]} 39... Re2 {[%clk 0:00:29.5]}
40. Kf3 {[%clk 0:01:55.3]} 40... Rh2 {[%clk 0:00:30.2]} 41. Kg3 {[%clk
0:01:55.5]} 41... Re2 {[%clk 0:00:29.1]} 1/2-1/2

[Event "*** Titled Tuesday Blitz"]
[Site "Chess.com"]
[Date "2019.06.04"]
[Round "3"]
[White "adriangschnitzer"]
[Black "jk13"]
[Result "1-0"]
[WhiteElo "2479"]
[BlackElo "2537"]
[TimeControl "180+2"]
[EndTime "13:35:06 PDT"]
[Termination "adriangschnitzer won by resignation"]

1. c4 {[%clk 0:03:01.9]} 1... e6 {[%clk 0:03:00.2]} 2. Nc3 {[%clk 0:03:01.4]}
2... Bb4 {[%clk 0:03:00.1]} 3. Qb3 {[%clk 0:03:00.4]} 3... Bxc3 {[%clk
0:02:58.1]} 4. Qxc3 {[%clk 0:03:00.4]} 4... Nf6 {[%clk 0:03:00]} 5. d3 {[%clk
0:02:59.8]} 5... O-O {[%clk 0:03:01.9]} 6. Nf3 {[%clk 0:02:58.5]} 6... d6 {[%clk
0:03:03.2]} 7. g3 {[%clk 0:02:59.3]} 7... b6 {[%clk 0:03:03.8]} 8. Bg2 {[%clk
0:03:00.5]} 8... Bb7 {[%clk 0:03:05.4]} 9. O-O {[%clk 0:03:01.8]} 9... e5 {[%clk
0:03:05.7]} 10. b4 {[%clk 0:03:01.2]} 10... a5 {[%clk 0:02:58.4]} 11. a3 {[%clk
0:02:54.5]} 11... Nbd7 {[%clk 0:02:59.3]} 12. Bb2 {[%clk 0:02:55.1]} 12... Re8
{[%clk 0:03:00.4]} 13. e4 {[%clk 0:02:52]} 13... c5 {[%clk 0:02:57.9]} 14. b5
{[%clk 0:02:48.1]} 14... Nf8 {[%clk 0:02:56.1]} 15. Nh4 {[%clk 0:02:48.7]} 15...
Ne6 {[%clk 0:02:54.9]} 16. Qd2 {[%clk 0:02:42.3]} 16... Nd4 {[%clk 0:02:46.2]}
17. Bxd4 {[%clk 0:02:41.7]} 17... cxd4 {[%clk 0:02:48.1]} 18. Nf5 {[%clk
0:02:35.2]} 18... Bc8 {[%clk 0:02:44]} 19. f4 {[%clk 0:02:30]} 19... Bxf5 {[%clk
0:02:38.5]} 20. exf5 {[%clk 0:02:30.3]} 20... Ra7 {[%clk 0:02:26.7]} 21. Bc6
{[%clk 0:02:15.1]} 21... Rf8 {[%clk 0:02:26.1]} 22. Qe2 {[%clk 0:02:11.3]} 22...
Re7 {[%clk 0:02:25.5]} 23. Qf3 {[%clk 0:02:07.5]} 23... Kh8 {[%clk 0:02:01.8]}
24. g4 {[%clk 0:02:07.7]} 24... Nd7 {[%clk 0:02:00.5]} 25. g5 {[%clk 0:02:04.1]}
25... Nc5 {[%clk 0:01:52.3]} 26. Qh3 {[%clk 0:01:49.8]} 26... exf4 {[%clk
0:01:33]} 27. Rxf4 {[%clk 0:01:38.5]} 27... Re3 {[%clk 0:01:34]} 28. Qh5 {[%clk
0:01:30.2]} 28... h6 {[%clk 0:00:50]} 29. f6 {[%clk 0:01:25.7]} 29... Rg8 {[%clk
0:00:28.3]} 30. Rh4 {[%clk 0:01:18.9]} 30... Kh7 {[%clk 0:00:16.5]} 31. Qxh6+
{[%clk 0:01:18.7]} 1-0